[Event "Belt and Road Women 2024"]
[Site "Yuecheng Shaoxing"]
[Date "2024.07.24"]
[Round "1.15"]
[White "Xiao, Yiyi"]
[Black "Bai, Xue"]
[Result "1/2-1/2"]
[ECO "D05"]
[WhiteElo "2338"]
[BlackElo "2114"]
[Annotator "RC"]
[PlyCount "100"]
[EventDate "2024.08.01"]
[EventType "swiss"]
[EventCountry "CHN"]
[SourceTitle "playchess.com"]
[Source "ChessBase"]
[SourceQuality "1"]
[TimeControl "5400+30"]

1. Nf3 {[%emt 0:00:17]} d5 {[%emt 0:00:08]} 2. e3 {[%emt 0:00:14]} Nf6 {[%emt 0:00:48]} 3. d4 {[%emt 0:00:40]} e6 {[%emt 0:00:48]} 4. Bd3 {[%emt 0:00:24]} Be7 {[%emt 0:02:40]} 5. O-O {[%emt 0:00:17]} b6 {[%emt 0:04:21]} 6. b3 {[%emt 0:00:46]} Bb7 {[%emt 0:00:42]} 7. Bb2 {[%emt 0:00:14]} Nbd7 {[%emt 0:01:38]} 8. Nbd2 {[%emt 0:02:57]} O-O {[%emt 0:04:27]} 9. Qe2 {[%emt 0:02:39]} Ne4 {[%emt 0:07:50]} 10. c4 {[%emt 0:11:38]} Re8 {[%emt 0:09:03]} 11. Rfd1 {[%emt 0:00:27]} Bd6 {[%emt 0:11:14]} 12. Ne5 {[%emt 0:10:17]} f6 {[%emt 0:03:00]} 13. Nxd7 {[%emt 0:02:25]} Qxd7 {[%emt 0:00:10]} 14. Rac1 {[%emt 0:10:21]} Qe7 {[%emt 0:02:52]} 15. Bxe4 {[%emt 0:05:47]} dxe4 {[%emt 0:00:10]} 16. c5 {[%emt 0:00:31]} bxc5 {[%emt 0:00:11]} 17. Qb5 {[%emt 0:00:38]} c6 {[%emt 0:01:20]} 18. Qc4 {[%emt 0:07:07]} cxd4 {[%emt 0:02:18]} 19. Nxe4 {[%emt 0:00:49]} c5 {[%emt 0:00:55]} 20. Nxd6 {[%emt 0:03:40]} Qxd6 {[%emt 0:00:07]} 21. exd4 {[%emt 0:00:48]} cxd4 {[%emt 0:00:08]} 22. Rxd4 {[%emt 0:05:16]} Bd5 {[%emt 0:00:14]} 23. Qc2 {[%emt 0:02:54]} e5 {[%emt 0:13:09]} 24. Ra4 {[%emt 0:01:31]} Qe6 {[%emt 0:01:23]} 25. Qd3 {[%emt 0:03:48]} Red8 {[%emt 0:02:18]} 26. Qe3 {[%emt 0:00:28]} Rd7 {[%emt 0:02:22]} 27. f3 {[%emt 0:08:01]} Kf7 {[%emt 0:01:47]} 28. h3 {[%emt 0:04:00]} Qb6 {[%emt 0:03:43]} 29. Kf2 {[%emt 0:01:52]} Qe6 {[%emt 0:04:19]} 30. Ba3 {[%emt 0:02:31]} h5 {[%emt 0:02:57]} 31. Ra5 {[%emt 0:00:48]} Qb6 {[%emt 0:01:35]} 32. Ra4 {[%emt 0:03:29]} Qe6 {[%emt 0:00:50]} 33. Rc2 {[%emt 0:00:21]} a6 {[%emt 0:01:42]} 34. Bb4 {[%emt 0:01:34]} Qf5 {[%emt 0:00:29]} 35. Rd2 {[%emt 0:01:27]} e4 {[%emt 0:00:54]} 36. Ra5 {[%emt 0:02:02]} exf3 {[%emt 0:00:18]} 37. Qxf3 {[%emt 0:03:23]} Bxf3 {[%emt 0:02:16]} 38. Rxf5 {[%emt 0:00:07]} Rxd2+ {[%emt 0:00:04]} 39. Bxd2 {[%emt 0:00:04]} Be4 {[%emt 0:00:07]} 40. Rc5 {[%emt 0:01:36]} Rd8 {[%emt 0:00:35]} 41. Bb4 {[%emt 0:00:49]} Bb1 {[%emt 0:02:21]} 42. a3 {[%emt 0:01:10]} Ba2 {[%emt 0:01:50]} 43. Rc6 {[%emt 0:00:31]} Bxb3 {[%emt 0:00:53]} 44. Rxa6 {[%emt 0:00:04]} Rc8 {[%emt 0:01:37]} 45. Ra7+ {[%emt 0:00:12]} Kg6 {[%emt 0:00:09]} 46. g3 {[%emt 0:00:17]} Rc2+ {[%emt 0:00:57]} 47. Ke3 {[%emt 0:00:07]} h4 {[%emt 0:00:39]} 48. gxh4 {[%emt 0:01:12]} Rh2 {[%emt 0:00:15]} 49. h5+ {[%emt 0:01:12]} Kf5 {[%emt 0:00:48]} 50. Rxg7 {[%emt 0:00:42]} Rxh3+ {[%emt 0:00:05]} 1/2-1/2

[Event "Belt and Road Women 2024"]
[Site "Yuecheng Shaoxing"]
[Date "2024.07.24"]
[Round "1.16"]
[White "Yang, Yijing"]
[Black "Yan, Tianqi"]
[Result "1/2-1/2"]
[ECO "E17"]
[WhiteElo "2022"]
[BlackElo "2306"]
[Annotator "RC"]
[PlyCount "130"]
[EventDate "2024.08.01"]
[EventType "swiss"]
[EventCountry "CHN"]
[SourceTitle "playchess.com"]
[Source "ChessBase"]
[SourceQuality "1"]
[TimeControl "5400+30"]

1. Nf3 {[%emt 0:00:04]} Nf6 {[%emt 0:01:03]} 2. c4 {[%emt 0:00:21]} b6 {[%emt 0:02:47]} 3. g3 {[%emt 0:05:59]} Bb7 {[%emt 0:04:17]} 4. Bg2 {[%emt 0:00:35]} c5 {[%emt 0:00:52]} 5. O-O {[%emt 0:01:14]} e6 {[%emt 0:00:34]} 6. Nc3 {[%emt 0:01:28]} Be7 {[%emt 0:01:58]} 7. Re1 {[%emt 0:04:11]} d5 {[%emt 0:03:19]} 8. cxd5 {[%emt 0:03:03]} exd5 {[%emt 0:01:17]} 9. d4 {[%emt 0:00:22]} O-O {[%emt 0:02:40]} 10. Bf4 {[%emt 0:04:29]} Nc6 {[%emt 0:04:28]} 11. Rc1 {[%emt 0:06:07]} Ne4 {[%emt 0:10:26]} 12. dxc5 {[%emt 0:11:27]} Bxc5 {[%emt 0:04:56]} 13. e3 {[%emt 0:02:55]} Bb4 {[%emt 0:07:52]} 14. Qxd5 {[%emt 0:10:26]} Qxd5 {[%emt 0:01:49]} 15. Nxd5 {[%emt 0:03:33]} Bxe1 {[%emt 0:08:40]} 16. Nxe1 {[%emt 0:00:17]} f5 {[%emt 0:08:45]} 17. Rxc6 {[%emt 0:07:13]} Bxc6 {[%emt 0:01:13]} 18. Ne7+ {[%emt 0:00:17]} Kh8 {[%emt 0:01:20]} 19. Nxc6 {[%emt 0:00:21]} Rac8 {[%emt 0:00:36]} 20. Nb4 {[%emt 0:11:11]} Rc1 {[%emt 0:02:07]} 21. Nbd3 {[%emt 0:02:44]} Ra1 {[%emt 0:01:45]} 22. Kf1 {[%emt 0:09:16]} Rxa2 {[%emt 0:04:28]} 23. g4 {[%emt 0:04:19]} Nd2+ {[%emt 0:04:43]} 24. Ke2 {[%emt 0:00:12]} Nc4 {[%emt 0:00:04]} 25. Bd5 {[%emt 0:00:31]} b5 {[%emt 0:00:15]} 26. g5 {[%emt 0:05:06]} a5 {[%emt 0:02:09]} 27. Kf3 {[%emt 0:05:25]} Ra1 {[%emt 0:05:10]} 28. b3 {[%emt 0:00:44]} Nd2+ {[%emt 0:00:50]} 29. Ke2 {[%emt 0:00:32]} Ne4 {[%emt 0:01:00]} 30. Kf3 {[%emt 0:00:34]} Rb1 {[%emt 0:01:47]} 31. h4 {[%emt 0:00:25]} Nc3 {[%emt 0:06:21]} 32. Be6 {[%emt 0:00:28]} Re8 {[%emt 0:00:11]} 33. Bxf5 {[%emt 0:00:32]} Rxb3 {[%emt 0:01:08]} 34. Nc2 {[%emt 0:00:34]} Nd5 {[%emt 0:01:03]} 35. Nd4 {[%emt 0:00:56]} Nxf4 {[%emt 0:01:22]} 36. Nxb3 {[%emt 0:00:00]} Nxd3 {[%emt 0:00:29]} 37. Bxd3 {[%emt 0:00:00]} a4 {[%emt 0:00:11]} 38. Nd4 {[%emt 0:01:01]} b4 {[%emt 0:00:45]} 39. Ke2 {[%emt 0:00:34]} Rc8 {[%emt 0:03:38]} 40. Kd2 {[%emt 0:00:18]} b3 {[%emt 0:00:30]} 41. Nb5 {[%emt 0:00:39]} b2 {[%emt 0:00:36]} 42. Bc2 {[%emt 0:00:33]} b1=Q {[%emt 0:01:33]} 43. Bxb1 {[%emt 0:00:01]} Rb8 {[%emt 0:00:02]} 44. Bd3 {[%emt 0:00:28]} Kg8 {[%emt 0:00:04]} 45. Kc3 {[%emt 0:00:14]} h6 {[%emt 0:00:19]} 46. gxh6 {[%emt 0:01:01]} gxh6 {[%emt 0:00:02]} 47. h5 {[%emt 0:00:34]} Kg7 {[%emt 0:00:28]} 48. f4 {[%emt 0:00:29]} Re8 {[%emt 0:00:40]} 49. Kd4 {[%emt 0:00:44]} Rd8+ {[%emt 0:00:13]} 50. Kc3 {[%emt 0:00:06]} Re8 {[%emt 0:00:03]} 51. e4 {[%emt 0:00:21]} Rf8 {[%emt 0:00:04]} 52. Nd4 {[%emt 0:00:49]} Rb8 {[%emt 0:00:01]} 53. Nb5 {[%emt 0:00:42]} Rf8 {[%emt 0:00:03]} 54. f5 {[%emt 0:00:28]} Kf6 {[%emt 0:00:08]} 55. Kb4 {[%emt 0:00:21]} Ke5 56. Kxa4 Rd8 {[%emt 0:01:59]} 57. Bc2 {[%emt 0:01:08]} Rd2 {[%emt 0:00:11]} 58. Kb3 {[%emt 0:00:02]} Rh2 {[%emt 0:00:09]} 59. Na3 {[%emt 0:00:17]} Rxh5 {[%emt 0:00:16]} 60. Nc4+ {[%emt 0:00:08]} Kd4 {[%emt 0:00:07]} 61. e5 {[%emt 0:01:17]} Rh3+ {[%emt 0:00:17]} 62. Kb4 {[%emt 0:00:02]} Rc3 {[%emt 0:00:27]} 63. Bb3 {[%emt 0:00:05]} Rxc4+ {[%emt 0:00:13]} 64. Bxc4 {[%emt 0:00:04]} Kxe5 {[%emt 0:00:09]} 65. Bd3 {[%emt 0:01:46]} h5 {[%emt 0:00:00]} 1/2-1/2

[Event "Belt and Road Women 2024"]
[Site "Yuecheng Shaoxing"]
[Date "2024.07.25"]
[Round "2.1"]
[White "Velpula Sarayu"]
[Black "Tan, Zhongyi"]
[Result "1/2-1/2"]
[ECO "C88"]
[WhiteElo "2384"]
[BlackElo "2540"]
[Annotator "RC"]
[PlyCount "60"]
[EventDate "2024.08.01"]
[EventType "swiss"]
[EventCountry "CHN"]
[SourceTitle "playchess.com"]
[Source "ChessBase"]
[SourceQuality "1"]
[TimeControl "5400+30"]

1. e4 {[%emt 0:00:25]} e5 {[%emt 0:00:08]} 2. Nf3 {[%emt 0:00:27]} Nc6 {[%emt 0:00:08]} 3. Bb5 {[%emt 0:00:36]} a6 {[%emt 0:00:07]} 4. Ba4 {[%emt 0:00:29]} Nf6 {[%emt 0:00:09]} 5. O-O {[%emt 0:00:29]} Be7 {[%emt 0:00:09]} 6. Re1 {[%emt 0:00:30]} b5 {[%emt 0:00:08]} 7. Bb3 {[%emt 0:00:26]} O-O {[%emt 0:00:10]} 8. a4 {[%emt 0:00:27]} Na5 {[%emt 0:02:03]} 9. axb5 {[%emt 0:02:22]} Nxb3 {[%emt 0:00:07]} 10. cxb3 {[%emt 0:00:13]} Bb7 {[%emt 0:00:04]} 11. bxa6 {[%emt 0:14:02]} d5 {[%emt 0:00:26]} 12. d4 {[%emt 0:05:00]} dxe4 {[%emt 0:00:16]} 13. Nxe5 {[%emt 0:00:58]} Rxa6 {[%emt 0:00:09]} 14. Rxa6 {[%emt 0:02:02]} Bxa6 {[%emt 0:00:05]} 15. Nc6 {[%emt 0:02:55]} Qd7 {[%emt 0:00:08]} 16. Nxe7+ {[%emt 0:00:12]} Qxe7 {[%emt 0:00:04]} 17. Bg5 {[%emt 0:00:15]} h6 {[%emt 0:00:08]} 18. Bxf6 {[%emt 0:02:22]} Qxf6 {[%emt 0:00:07]} 19. Nc3 {[%emt 0:02:06]} Bd3 {[%emt 0:00:09]} 20. Nxe4 {[%emt 0:02:26]} Qxd4 {[%emt 0:00:14]} 21. Nc5 {[%emt 0:02:02]} Qxc5 {[%emt 0:00:07]} 22. Qxd3 {[%emt 0:00:03]} Rb8 {[%emt 0:00:37]} 23. g3 {[%emt 0:02:21]} g6 {[%emt 0:01:58]} 24. Qe3 {[%emt 0:01:34]} Qb4 {[%emt 0:02:48]} 25. Rc1 {[%emt 0:00:52]} Qxb3 {[%emt 0:00:08]} 26. Qxh6 {[%emt 0:08:23]} Qxb2 {[%emt 0:00:14]} 27. Rxc7 {[%emt 0:00:18]} Qa1+ {[%emt 0:00:06]} 28. Rc1 {[%emt 0:00:16]} Rb1 {[%emt 0:00:27]} 29. Rxb1 {[%emt 0:00:02]} Qxb1+ {[%emt 0:00:06]} 30. Kg2 {[%emt 0:00:04]} Qe4+ {[%emt 0:00:04]} 1/2-1/2

[Event "Belt and Road Women 2024"]
[Site "Yuecheng Shaoxing"]
[Date "2024.07.25"]
[Round "2.2"]
[White "Zhai, Mo"]
[Black "Wagner, Dinara"]
[Result "1/2-1/2"]
[ECO "D38"]
[WhiteElo "2348"]
[BlackElo "2454"]
[Annotator "RC"]
[PlyCount "76"]
[EventDate "2024.08.01"]
[EventType "swiss"]
[EventCountry "CHN"]
[SourceTitle "playchess.com"]
[Source "ChessBase"]
[SourceQuality "1"]
[TimeControl "5400+30"]

1. d4 {[%emt 0:00:11]} Nf6 {[%emt 0:00:05]} 2. c4 {[%emt 0:00:07]} e6 {[%emt 0:00:05]} 3. Nf3 {[%emt 0:00:36]} d5 {[%emt 0:00:06]} 4. Nc3 {[%emt 0:00:19]} Bb4 {[%emt 0:00:13]} 5. cxd5 {[%emt 0:01:14]} exd5 {[%emt 0:00:15]} 6. Bg5 {[%emt 0:00:22]} O-O {[%emt 0:07:02]} 7. e3 {[%emt 0:01:37]} c5 {[%emt 0:00:10]} 8. dxc5 {[%emt 0:02:30]} Nbd7 {[%emt 0:00:14]} 9. Be2 {[%emt 0:20:51]} Qa5 {[%emt 0:05:20]} 10. Bxf6 {[%emt 0:09:25]} Nxf6 {[%emt 0:00:56]} 11. O-O {[%emt 0:00:46]} Bxc3 {[%emt 0:04:35]} 12. bxc3 {[%emt 0:00:08]} Qxc5 {[%emt 0:03:05]} 13. Qd4 {[%emt 0:05:19]} b6 {[%emt 0:15:59]} 14. a4 {[%emt 0:07:17]} Be6 {[%emt 0:18:28]} 15. a5 {[%emt 0:21:29]} Rfc8 {[%emt 0:08:03]} 16. Ba6 {[%emt 0:03:31]} Rc7 {[%emt 0:02:48]} 17. axb6 {[%emt 0:00:31]} axb6 {[%emt 0:00:48]} 18. Bd3 {[%emt 0:00:54]} Rac8 {[%emt 0:16:03]} 19. Rab1 {[%emt 0:04:44]} Qxc3 {[%emt 0:00:17]} 20. Rxb6 {[%emt 0:00:53]} Nd7 {[%emt 0:05:08]} 21. Rb4 {[%emt 0:06:04]} Qxd4 {[%emt 0:00:43]} 22. Nxd4 {[%emt 0:00:12]} Ne5 {[%emt 0:01:08]} 23. Be2 {[%emt 0:01:29]} Nc6 {[%emt 0:01:14]} 24. Nxc6 {[%emt 0:07:15]} Rxc6 {[%emt 0:00:03]} 25. h3 {[%emt 0:01:02]} g6 {[%emt 0:03:00]} 26. g4 {[%emt 0:00:34]} Rc2 {[%emt 0:01:38]} 27. Bf3 {[%emt 0:00:46]} R2c4 {[%emt 0:00:42]} 28. Rfb1 {[%emt 0:00:39]} g5 {[%emt 0:00:31]} 29. Kg2 {[%emt 0:00:24]} Kg7 {[%emt 0:00:05]} 30. Rb5 {[%emt 0:00:43]} R8c5 {[%emt 0:00:47]} 31. Kg3 {[%emt 0:00:52]} h6 {[%emt 0:00:43]} 32. Rxc5 {[%emt 0:00:27]} Rxc5 {[%emt 0:00:03]} 33. Rb8 {[%emt 0:00:12]} Ra5 {[%emt 0:02:01]} 34. Rd8 {[%emt 0:00:22]} Rc5 {[%emt 0:00:02]} 35. Rb8 {[%emt 0:01:13]} Kf6 {[%emt 0:00:24]} 36. h4 {[%emt 0:01:19]} Rc2 {[%emt 0:00:38]} 37. hxg5+ {[%emt 0:00:52]} hxg5 {[%emt 0:00:04]} 38. Rb5 {[%emt 0:00:15]} Ke5 {[%emt 0:01:24]} 1/2-1/2

[Event "Belt and Road Women 2024"]
[Site "Yuecheng Shaoxing"]
[Date "2024.07.25"]
[Round "2.3"]
[White "Garifullina, Leya"]
[Black "Velikic, Adela"]
[Result "1/2-1/2"]
[ECO "E08"]
[WhiteElo "2458"]
[BlackElo "2290"]
[Annotator "TA"]
[PlyCount "102"]
[EventDate "2024.08.01"]
[EventType "swiss"]
[EventCountry "CHN"]
[SourceTitle "playchess.com"]
[Source "ChessBase"]
[SourceQuality "1"]
[TimeControl "5400+30"]

{[%evp 17,102,0,27,21,24,29,27,35,31,17,64,82,126,130,143,85,89,64,56,48,106,40,52,21,46,2,38,-35,-11,-20,-21,-99,-78,-109,-104,-111,-119,-128,-100,-149,-137,-135,-120,-138,-111,-111,-111,-126,-111,-111,-111,-108,-108,-111,-62,-104,-104,-104,-104,-106,-107,-107,-104,-104,-104,-190,-104,-104,-8,-8,-8,-8,-8,-8,-8,-8,-8,-8,-8,-8,-8,-8,-8,-8,0,0,0]} 1. d4 {[%emt 0:00:16]} d5 {[%emt 0:00:13]} 2. c4 {[%emt 0:00:07]} e6 {[%emt 0:00:04]} 3. Nf3 {[%emt 0:00:08]} Nf6 {[%emt 0:00:12]} 4. g3 {[%emt 0:00:07]} Bb4+ {[%emt 0:00:11]} 5. Bd2 {[%emt 0:00:19]} Be7 {[%emt 0:00:07]} 6. Bg2 {[%emt 0:00:07]} O-O {[%emt 0:00:06]} 7. O-O {[%emt 0:00:23]} Nbd7 {[%emt 0:00:15]} 8. Qc2 {[%emt 0:00:17]} c6 {[%emt 0:00:10]} 9. Bf4 {[%emt 0:03:37]} a5 {[%emt 0:00:34]} 10. Rd1 {[%emt 0:00:52]} a4 {[%emt 0:00:49]} 11. a3 {[%emt 0:02:55]} Nb6 {[%emt 0:29:03]} 12. c5 {[%emt 0:09:48] White has an edge.} Nc4 {[%emt 0:01:23]} 13. Nc3 {[%emt 0:00:23][%cal Of3d2]} Qa5 {[%emt 0:17:17]} (13... b6 $11) 14. e4 {[%emt 0:07:23][%cal Be2e4,Be4e5][%mdl 32]} Bd7 {[%emt 0:14:46]} 15. e5 {[%emt 0:07:54]} Ne8 {[%emt 0:09:38]} 16. Ng5 {[%emt 0:07:20]} ({White should play} 16. Bf1) 16... g6 $16 {[%emt 0:00:29]} 17. Nce4 {[%emt 0:05:00][%cal Og2f1]} Qd8 {[%emt 0:09:33][%cal Ob7b5]} 18. h4 {[%emt 0:01:24]} Na5 {[%emt 0:03:38]} (18... b6 $14) 19. Nd6 {[%emt 0:02:44] White has more active pieces.} (19. Nc3 $1 $16) 19... Nb3 {[%emt 0:00:59]} 20. Rab1 {[%emt 0:01:59]} b6 {[%emt 0:00:55]} 21. Nf3 {[%emt 0:06:15]} Ng7 {[%emt 0:01:51]} 22. Be3 {[%emt 0:03:00]} ({White should try} 22. Rd3 $14) 22... bxc5 {[%emt 0:03:35] White should prevent ...Bxd6.} 23. dxc5 {[%emt 0:00:20]} Nf5 {[%emt 0:00:47]} 24. Nxf5 {[%emt 0:04:22]} (24. Bd2 $11 {remains equal.}) 24... exf5 $17 {[%emt 0:00:14]} 25. Nd4 {[%emt 0:03:47] [#]} f4 $1 {[%emt 0:01:45]} ({Don't do} 25... Bxc5 26. Nxc6 (26. Nxb3 Bxe3 27. Nd4 Bxd4 $17) 26... Bxc6 27. Bxc5 $15) 26. gxf4 {[%emt 0:07:34] [#]} Nxd4 $1 {[%emt 0:00:36]} 27. Bxd4 {[%emt 0:00:06]} Bf5 {[%emt 0:00:16]} ({Reject} 27... Bxh4 $6 28. b4 $11) 28. Qe2 {[%emt 0:03:58]} Bxb1 {[%emt 0:00:22]} ({Don't take} 28... Bxh4 29. b4 $15) 29. Rxb1 {[%emt 0:00:04][%cal Of4f5]} Bxh4 {[%emt 0:00:57]} 30. Qf3 {[%emt 0:07:59]} f5 {[%emt 0:01:40]} 31. Bf1 {[%emt 0:00:51]} Be7 {[%emt 0:01:06]} 32. Bd3 {[%emt 0:00:33]} Qa5 {[%emt 0:01:05]} 33. Qe3 {[%emt 0:00:20]} Rab8 {[%emt 0:00:45]} 34. Kg2 {[%emt 0:00:33]} Rb3 {[%emt 0:00:58]} 35. Rd1 {[%emt 0:03:42]} Qa7 {[%emt 0:00:26]} (35... Re8 $17) 36. Rc1 {[%emt 0:02:20]} Re8 {[%emt 0:00:46]} 37. Qd2 {[%emt 0:01:59]} Bf8 {[%emt 0:00:32]} 38. Qc2 {[%emt 0:01:12]} Bh6 {[%emt 0:00:32]} 39. Kf3 {[%emt 0:01:10]} Reb8 {[%emt 0:00:32]} 40. Rh1 {[%emt 0:01:30]} Bf8 {[%emt 0:00:06]} 41. Ke2 {[%emt 0:01:36]} (41. Kg2 $17) 41... Qb7 {[%emt 0:00:43]} (41... Rxd3 $19 42. Kxd3 Rb5) 42. Rg1 {[%emt 0:01:21]} Kh8 {[%emt 0:00:45]} (42... Bg7 $17 43. Kf1 Rxb2 44. Bxb2 Qxb2 45. Qxa4 Qb3) 43. Bxf5 $1 $11 {[%emt 0:01:41] The position is equal.} Rxb2 {[%emt 0:00:41]} (43... Qb5+ {keeps more tension.} 44. Bd3 Rxb2 45. Bxb2 Qxb2 46. Rb1 Qxb1 47. Qxb1 Rxb1 48. Bxb1 Bxc5 49. Bc2 Bxa3 50. Bxa4 c5) 44. Bxb2 {[%emt 0:00:10]} Qxb2 {[%emt 0:00:07]} 45. Rb1 {[%emt 0:01:42]} Qxc2+ {[%emt 0:00:51]} 46. Bxc2 {[%emt 0:00:05]} Rxb1 {[%emt 0:00:19]} 47. Bxb1 {[%emt 0:00:03]} Bxc5 {[%emt 0:00:09] KB-KB} 48. Bc2 {[%emt 0:00:03][%cal Bb1c2,Bc2a4,Ba4c6,Bc6d5][%mdl 32]} Bxa3 {[%emt 0:00:21]} 49. Bxa4 {[%emt 0:00:03]} c5 {[%emt 0:01:02][%cal Bc6c5,Bc5c4,Bc4c3][%mdl 32]} 50. Bc6 {[%emt 0:00:51]} c4 {[%emt 0:00:38]} 51. Bxd5 {[%emt 0:00:10]} c3 {[%emt 0:00:26] Weighted Error Value: White=0.22 (precise) /Black=0.16 (very precise) .  Mistake:       	White=6     	Black=5      Inaccurate:     	White=4     	Black=2      OK:         	White=13    	Black=16     Best:        	White=2     	---        Strong:       	White=1     	Black=2} 1/2-1/2

[Event "Belt and Road Women 2024"]
[Site "Yuecheng Shaoxing"]
[Date "2024.07.25"]
[Round "2.4"]
[White "Ni, Shiqun"]
[Black "Badelka, Olga"]
[Result "1/2-1/2"]
[ECO "C72"]
[WhiteElo "2352"]
[BlackElo "2389"]
[Annotator "RC"]
[PlyCount "53"]
[EventDate "2024.08.01"]
[EventType "swiss"]
[EventCountry "CHN"]
[SourceTitle "playchess.com"]
[Source "ChessBase"]
[SourceQuality "1"]
[TimeControl "5400+30"]

1. e4 {[%emt 0:01:01]} e5 {[%emt 0:00:03]} 2. Nf3 {[%emt 0:00:37]} Nc6 {[%emt 0:00:07]} 3. Bb5 {[%emt 0:00:46]} a6 {[%emt 0:00:11]} 4. Ba4 {[%emt 0:00:06]} d6 {[%emt 0:00:10]} 5. O-O {[%emt 0:00:08]} Bd7 {[%emt 0:00:09]} 6. c4 {[%emt 0:00:43]} Nf6 {[%emt 0:00:38]} 7. Nc3 {[%emt 0:00:43]} Be7 {[%emt 0:00:10]} 8. Re1 {[%emt 0:14:14]} O-O {[%emt 0:01:02]} 9. Bxc6 {[%emt 0:00:25]} bxc6 {[%emt 0:00:31]} 10. d4 {[%emt 0:00:09]} exd4 {[%emt 0:04:12]} 11. Qxd4 {[%emt 0:00:15]} c5 {[%emt 0:00:15]} 12. Qd3 {[%emt 0:11:16]} Bc6 {[%emt 0:00:49]} 13. e5 {[%emt 0:09:10]} Ng4 {[%emt 0:06:55]} 14. Bf4 {[%emt 0:09:23]} dxe5 {[%emt 0:01:46]} 15. Nxe5 {[%emt 0:02:18]} Nxe5 {[%emt 0:00:53]} 16. Qxd8 {[%emt 0:00:04]} Rfxd8 {[%emt 0:05:48]} 17. Bxe5 {[%emt 0:00:08]} Rd7 {[%emt 0:11:12]} 18. Rad1 {[%emt 0:01:44]} Rad8 {[%emt 0:00:14]} 19. Rxd7 {[%emt 0:05:18]} Rxd7 {[%emt 0:00:14]} 20. f3 {[%emt 0:01:54]} f6 {[%emt 0:06:07]} 21. Bg3 {[%emt 0:00:13]} Kf7 {[%emt 0:00:08]} 22. Rd1 {[%emt 0:01:42]} Bd6 {[%emt 0:00:28]} 23. Kf2 {[%emt 0:07:25]} Ke6 {[%emt 0:01:54]} 24. Re1+ {[%emt 0:01:55]} Kf7 {[%emt 0:00:32]} 25. Rd1 {[%emt 0:00:26]} Ke6 {[%emt 0:00:04]} 26. Re1+ {[%emt 0:00:09]} Kf7 {[%emt 0:00:03]} 27. Rd1 {[%emt 0:00:05]} 1/2-1/2

[Event "Belt and Road Women 2024"]
[Site "Yuecheng Shaoxing"]
[Date "2024.07.25"]
[Round "2.5"]
[White "Pham, Le Thao Nguyen"]
[Black "Kurmangaliyeva, Liya"]
[Result "0-1"]
[ECO "D66"]
[WhiteElo "2395"]
[BlackElo "2282"]
[Annotator "RC"]
[PlyCount "136"]
[EventDate "2024.08.01"]
[EventType "swiss"]
[EventCountry "CHN"]
[SourceTitle "playchess.com"]
[Source "ChessBase"]
[SourceQuality "1"]
[TimeControl "5400+30"]

1. d4 {[%emt 0:00:04]} Nf6 {[%emt 0:00:33]} 2. c4 {[%emt 0:00:32]} e6 {[%emt 0:00:15]} 3. Nc3 {[%emt 0:00:26]} d5 {[%emt 0:00:39]} 4. Bg5 {[%emt 0:00:52]} Be7 {[%emt 0:00:52]} 5. e3 {[%emt 0:00:37]} h6 {[%emt 0:01:24]} 6. Bh4 {[%emt 0:00:29]} O-O {[%emt 0:02:32]} 7. Nf3 {[%emt 0:01:07]} Nbd7 {[%emt 0:01:54]} 8. Rc1 {[%emt 0:01:50]} c6 {[%emt 0:01:35]} 9. Bd3 {[%emt 0:02:57]} dxc4 {[%emt 0:02:19]} 10. Bxc4 {[%emt 0:00:12]} b5 {[%emt 0:00:16]} 11. Bd3 {[%emt 0:00:38]} Bb7 {[%emt 0:00:24]} 12. O-O {[%emt 0:00:53]} a5 {[%emt 0:17:11]} 13. a4 {[%emt 0:06:44]} b4 {[%emt 0:12:51]} 14. Bxf6 {[%emt 0:03:59]} gxf6 {[%emt 0:06:50]} 15. Ne4 {[%emt 0:13:24]} f5 {[%emt 0:01:53]} 16. Ng3 {[%emt 0:03:47]} c5 {[%emt 0:03:42]} 17. e4 {[%emt 0:03:45]} f4 {[%emt 0:08:55]} 18. Nh5 {[%emt 0:02:53]} cxd4 {[%emt 0:01:28]} 19. e5 {[%emt 0:01:14]} Kh8 {[%emt 0:05:15]} 20. Re1 {[%emt 0:01:24]} Nc5 {[%emt 0:07:35]} 21. Rxc5 {[%emt 0:07:17]} Bxc5 {[%emt 0:02:40]} 22. Qc1 {[%emt 0:00:53]} Be7 {[%emt 0:08:55]} 23. Qxf4 {[%emt 0:02:37]} Bg5 {[%emt 0:00:05]} 24. Qg4 {[%emt 0:01:26]} Rg8 {[%emt 0:00:19]} 25. Qh3 {[%emt 0:01:09]} Rc8 {[%emt 0:03:12]} 26. Nf6 {[%emt 0:03:48]} Bxf3 {[%emt 0:00:49]} 27. Nxg8 {[%emt 0:04:02]} Bxg2 {[%emt 0:01:20]} 28. Kxg2 {[%emt 0:00:40]} Qxg8 {[%emt 0:01:26]} 29. Re4 {[%emt 0:00:47]} Qg7 {[%emt 0:04:36]} 30. Qg3 {[%emt 0:14:36]} Bc1 {[%emt 0:00:29]} 31. Rg4 {[%emt 0:00:17]} Qxg4 {[%emt 0:00:24]} 32. Qxg4 {[%emt 0:01:19]} Rg8 {[%emt 0:00:03]} 33. Qxg8+ {[%emt 0:01:38]} Kxg8 {[%emt 0:00:02]} 34. b3 {[%emt 0:00:10]} Bf4 {[%emt 0:00:19]} 35. h3 {[%emt 0:00:19]} Bxe5 {[%emt 0:00:03]} 36. Bc4 {[%emt 0:00:26]} Kg7 {[%emt 0:04:45]} 37. Kf3 {[%emt 0:01:37]} Kg6 {[%emt 0:00:19]} 38. Bb5 {[%emt 0:06:29]} f5 {[%emt 0:00:46]} 39. Ke2 {[%emt 0:03:45]} Bh2 {[%emt 0:00:26]} 40. h4 {[%emt 0:05:07]} e5 {[%emt 0:00:35]} 41. Be8+ {[%emt 0:00:15]} Kf6 {[%emt 0:00:03]} 42. Kd3 {[%emt 0:00:08]} Bg1 {[%emt 0:00:05]} 43. f3 {[%emt 0:00:14]} Bf2 {[%emt 0:00:27]} 44. h5 {[%emt 0:00:11]} Kg5 {[%emt 0:01:18]} 45. Bg6 {[%emt 0:00:05]} Kf4 {[%emt 0:00:36]} 46. Bh7 {[%emt 0:00:10]} Bh4 {[%emt 0:00:32]} 47. Bg6 {[%emt 0:00:05]} Bf6 {[%emt 0:00:27]} 48. Bh7 {[%emt 0:00:04]} Bg7 {[%emt 0:00:32]} 49. Bg6 {[%emt 0:00:05]} Kg5 {[%emt 0:00:35]} 50. Bf7 {[%emt 0:00:21]} Bh8 {[%emt 0:00:20]} 51. Bg6 {[%emt 0:00:06]} Bf6 {[%emt 0:00:07]} 52. Bf7 {[%emt 0:00:06]} e4+ {[%emt 0:00:35]} 53. fxe4 {[%emt 0:00:08]} f4 {[%emt 0:00:09]} 54. e5 {[%emt 0:04:58]} Bxe5 {[%emt 0:00:03]} 55. Ke4 {[%emt 0:00:02]} Bg7 {[%emt 0:00:13]} 56. Kf3 {[%emt 0:01:36]} d3 {[%emt 0:01:06]} 57. Bg6 {[%emt 0:00:28]} d2 {[%emt 0:00:03]} 58. Bc2 {[%emt 0:00:04]} Be5 {[%emt 0:01:42]} 59. Ke4 {[%emt 0:00:29]} Bc7 {[%emt 0:00:38]} 60. Bd1 {[%emt 0:00:05]} Bb6 {[%emt 0:00:18]} 61. Kf3 {[%emt 0:02:22]} Be3 {[%emt 0:00:09]} 62. Kg2 {[%emt 0:00:09]} Kf5 {[%emt 0:00:16]} 63. Kf3 {[%emt 0:00:05]} Ke5 {[%emt 0:00:19]} 64. Kg4 {[%emt 0:03:00]} Kd4 {[%emt 0:00:04]} 65. Kf5 {[%emt 0:00:20]} Kc3 {[%emt 0:00:16]} 66. Ke4 {[%emt 0:01:09]} Kb2 {[%emt 0:00:05]} 67. Kd3 {[%emt 0:00:21]} Kc1 {[%emt 0:00:05]} 68. Ke2 {[%emt 0:00:04]} f3+ {[%emt 0:00:09]} 0-1